[Event "Portugal Open 2020"]
[Site "Lisbon"]
[Date "2020.01.26"]
[Round "2.37"]
[White "Heid, Michael"]
[Black "Bayramov, Zaur"]
[Result "0-1"]
[ECO "A45"]
[WhiteElo "1953"]
[BlackElo "2333"]
[Annotator "NA"]
[PlyCount "68"]
[EventDate "2020.01.25"]
[EventType "swiss"]
[EventCountry "POR"]
[SourceTitle "playchess.com"]
[Source "ChessBase"]
[SourceQuality "1"]
[TimeControl "5400+30"]

1. d4 {[%emt 0:00:00]} Nf6 {[%emt 0:00:00]} 2. Bf4 {[%emt 0:00:00]} d6 {[%emt 0:00:00]} 3. Nf3 {[%emt 0:00:10]} g6 {[%emt 0:00:15]} 4. e3 {[%emt 0:00:17]} Bg7 {[%emt 0:00:07]} 5. Bd3 O-O 6. h3 {[%emt 0:00:55]} Nc6 {[%emt 0:01:18]} 7. c3 {[%emt 0:00:20]} Re8 {[%emt 0:01:39]} 8. Bb5 {[%emt 0:02:57]} Bd7 {[%emt 0:01:10]} 9. O-O {[%emt 0:01:40]} a6 10. Ba4 b5 {[%emt 0:08:24]} 11. Bb3 {[%emt 0:01:19]} e5 12. dxe5 dxe5 {[%emt 0:07:50]} 13. Bh2 {[%emt 0:04:44]} h6 {[%emt 0:07:12]} 14. Nbd2 {[%emt 0:01:00]} e4 15. Nd4 {[%emt 0:18:37]} Ne5 {[%emt 0:13:54]} 16. Bc2 c5 {[%emt 0:01:23]} 17. N4b3 {[%emt 0:02:21]} c4 {[%emt 0:00:19]} 18. Nc5 {[%emt 0:13:21]} Nd3 {[%emt 0:00:41]} 19. Nxd7 {[%emt 0:00:30]} Qxd7 {[%emt 0:00:30]} 20. Bxd3 {[%emt 0:06:14]} exd3 {[%emt 0:02:14]} 21. Qf3 {[%emt 0:01:08]} Qd5 {[%emt 0:02:46]} 22. Qxd5 {[%emt 0:06:51]} Nxd5 {[%emt 0:00:09]} 23. a3 Nb6 {[%emt 0:04:42]} 24. h4 {[%emt 0:13:39]} Na4 {[%emt 0:01:22]} 25. Rfe1 {[%emt 0:02:57]} a5 {[%emt 0:01:54]} 26. Kf1 {[%emt 0:07:10]} Rac8 {[%emt 0:02:03]} 27. Rac1 {[%emt 0:00:30]} b4 {[%emt 0:00:50]} 28. axb4 {[%emt 0:00:52]} axb4 29. cxb4 {[%emt 0:01:16]} Nxb2 {[%emt 0:01:02]} 30. b5 {[%emt 0:05:01]} c3 {[%emt 0:00:46]} 31. b6 {[%emt 0:00:02]} cxd2 {[%emt 0:00:12]} 32. Rxc8 {[%emt 0:00:03]} Rxc8 {[%emt 0:00:08]} 33. Bc7 {[%emt 0:00:04]} d1=Q {[%emt 0:01:29]} 34. b7 {[%emt 0:00:00]} Re8 {[%emt 0:00:00]} 0-1

[Event "Portugal Open 2020"]
[Site "Lisbon"]
[Date "2020.01.26"]
[Round "2.38"]
[White "Napoli, Nicolo"]
[Black "Moretti, Filippo"]
[Result "1/2-1/2"]
[ECO "A04"]
[WhiteElo "2333"]
[BlackElo "1969"]
[Annotator "NA"]
[PlyCount "77"]
[EventDate "2020.01.25"]
[EventType "swiss"]
[EventCountry "POR"]
[SourceTitle "playchess.com"]
[Source "ChessBase"]
[SourceQuality "1"]
[TimeControl "5400+30"]

1. Nf3 {[%emt 0:03:54]} f5 {[%emt 0:00:08]} 2. b3 {[%emt 0:00:41]} Nf6 {[%emt 0:01:47]} 3. Bb2 {[%emt 0:00:32]} g6 {[%emt 0:00:10]} 4. Bxf6 {[%emt 0:01:42]} exf6 {[%emt 0:00:13]} 5. c4 {[%emt 0:00:04]} d5 {[%emt 0:00:58]} 6. e3 {[%emt 0:03:59]} Be6 {[%emt 0:04:44]} 7. Nc3 {[%emt 0:00:21]} c6 {[%emt 0:03:19]} 8. cxd5 {[%emt 0:03:46]} Bxd5 {[%emt 0:01:20]} 9. Nxd5 {[%emt 0:00:15]} cxd5 {[%emt 0:01:04]} 10. Nd4 {[%emt 0:03:49]} Bd6 {[%emt 0:07:16]} 11. Bb5+ {[%emt 0:02:26]} Kf7 {[%emt 0:01:37]} 12. Rc1 {[%emt 0:01:42]} a6 {[%emt 0:01:40]} 13. Bd3 {[%emt 0:04:28]} Be5 {[%emt 0:07:59]} 14. Ne2 {[%emt 0:14:46]} Nc6 {[%emt 0:03:16]} 15. O-O {[%emt 0:00:53]} Nb4 {[%emt 0:01:53]} 16. Bb1 {[%emt 0:04:56]} Bb2 {[%emt 0:06:36]} 17. Rc5 {[%emt 0:01:32]} b6 {[%emt 0:04:40]} 18. Rc2 {[%emt 0:02:05]} Nxc2 {[%emt 0:01:55]} 19. Qxc2 {[%emt 0:00:04]} Ba3 {[%emt 0:02:16]} 20. Qc6 {[%emt 0:05:18]} Re8 {[%emt 0:15:13]} 21. Nf4 {[%emt 0:05:23]} Qd6 {[%emt 0:03:14]} 22. Qxd6 {[%emt 0:03:59]} Bxd6 {[%emt 0:00:08]} 23. Nxd5 {[%emt 0:00:02]} b5 {[%emt 0:01:14]} 24. a4 {[%emt 0:03:55]} Rad8 {[%emt 0:02:11]} 25. axb5 {[%emt 0:03:00]} axb5 {[%emt 0:01:55]} 26. Nc3 {[%emt 0:00:42]} Bb4 {[%emt 0:00:51]} 27. Nxb5 {[%emt 0:01:27]} Rxd2 {[%emt 0:01:04]} 28. Nd4 {[%emt 0:01:15]} Bc5 {[%emt 0:02:05]} 29. Nf3 {[%emt 0:00:21]} Rb2 {[%emt 0:01:00]} 30. Bd3 {[%emt 0:00:53]} Ra8 {[%emt 0:01:01]} 31. h4 {[%emt 0:03:03]} Ke7 {[%emt 0:03:04]} 32. Bc4 {[%emt 0:01:44]} f4 {[%emt 0:01:51]} 33. exf4 {[%emt 0:09:48]} Rxf2 {[%emt 0:02:10]} 34. Rxf2 {[%emt 0:00:08]} Ra2 {[%emt 0:00:07]} 35. Kh2 {[%emt 0:02:05]} Rxf2 {[%emt 0:03:43]} 36. Kh3 {[%emt 0:01:21]} Rb2 {[%emt 0:02:03]} 37. Ne1 {[%emt 0:02:34]} Rb1 {[%emt 0:02:31]} 38. Nd3 {[%emt 0:00:47]} Bd6 {[%emt 0:00:23]} 39. Kg4 {[%emt 0:00:49]} 1/2-1/2

[Event "Portugal Open 2020"]
[Site "Lisbon"]
[Date "2020.01.26"]
[Round "2.39"]
[White "Esquivias Quintero, Luis Manuel"]
[Black "Roque, Armando Filipe"]
[Result "1-0"]
[ECO "C03"]
[WhiteElo "2318"]
[BlackElo "1960"]
[Annotator "NA"]
[PlyCount "63"]
[EventDate "2020.01.25"]
[EventType "swiss"]
[EventCountry "POR"]
[SourceTitle "playchess.com"]
[Source "ChessBase"]
[SourceQuality "1"]
[TimeControl "5400+30"]

1. e4 {[%emt 0:07:33]} e6 {[%emt 0:00:00]} 2. d4 {[%emt 0:00:05]} d5 {[%emt 0:00:00]} 3. Nd2 {[%emt 0:00:10]} Be7 {[%emt 0:00:00]} 4. Ngf3 {[%emt 0:00:05]} Nf6 {[%emt 0:00:00]} 5. e5 {[%emt 0:00:03]} Nfd7 {[%emt 0:00:00]} 6. c3 {[%emt 0:00:08]} c5 {[%emt 0:00:02]} 7. Bd3 {[%emt 0:00:02]} Nc6 {[%emt 0:00:15]} 8. O-O {[%emt 0:00:05]} g5 {[%emt 0:00:38]} 9. Qe2 {[%emt 0:00:00]} Qc7 {[%emt 0:00:54]} 10. Qe3 {[%emt 0:04:13]} h6 {[%emt 0:05:59]} 11. Ne1 {[%emt 0:18:44]} Qb6 {[%emt 0:06:44]} 12. Nc2 {[%emt 0:02:47]} h5 {[%emt 0:06:07]} 13. Kh1 {[%emt 0:08:00]} Nf8 {[%emt 0:10:52]} 14. f4 {[%emt 0:00:52]} c4 {[%emt 0:00:47]} 15. Be2 {[%emt 0:00:15]} g4 {[%emt 0:00:33]} 16. b3 {[%emt 0:01:31]} cxb3 {[%emt 0:02:10]} 17. axb3 {[%emt 0:00:22]} Bd7 {[%emt 0:01:58]} 18. c4 {[%emt 0:06:38]} O-O-O {[%emt 0:03:13]} 19. Ba3 {[%emt 0:04:52]} Bxa3 {[%emt 0:03:56]} 20. Rxa3 {[%emt 0:00:09]} a6 {[%emt 0:01:00]} 21. c5 {[%emt 0:00:39]} Qc7 {[%emt 0:01:04]} 22. Rfa1 {[%emt 0:01:46]} Nb8 {[%emt 0:03:09]} 23. b4 {[%emt 0:05:21]} Bc6 {[%emt 0:00:48]} 24. Nb3 {[%emt 0:01:44]} Qd7 {[%emt 0:00:18]} 25. Na5 {[%emt 0:02:56]} Bb5 {[%emt 0:00:21]} 26. c6 {[%emt 0:01:32]} bxc6 {[%emt 0:10:16]} 27. Nb3 {[%emt 0:04:53]} Qe7 {[%emt 0:05:40]} 28. Nc5 {[%emt 0:01:17]} Nfd7 {[%emt 0:02:01]} 29. Nxa6 {[%emt 0:06:24]} Nb6 {[%emt 0:07:09]} 30. Bxb5 {[%emt 0:01:13]} cxb5 {[%emt 0:00:14]} 31. Qc3+ {[%emt 0:01:01]} Kb7 {[%emt 0:04:19]} 32. Nc5+ {[%emt 0:00:58]} 1-0

[Event "Portugal Open 2020"]
[Site "Lisbon"]
[Date "2020.01.26"]
[Round "2.40"]
[White "Jorge, Rita Maria Osorio"]
[Black "Veiga, Jose Francisco R P N"]
[Result "0-1"]
[ECO "C54"]
[WhiteElo "1932"]
[BlackElo "2312"]
[Annotator "NA"]
[PlyCount "70"]
[EventDate "2020.01.25"]
[EventType "swiss"]
[EventCountry "POR"]
[SourceTitle "playchess.com"]
[Source "ChessBase"]
[SourceQuality "1"]
[TimeControl "5400+30"]

1. e4 {[%emt 0:03:02]} e5 {[%emt 0:00:00]} 2. Nf3 {[%emt 0:00:37]} Nc6 {[%emt 0:00:00]} 3. Bc4 {[%emt 0:00:22]} Bc5 {[%emt 0:00:06]} 4. c3 {[%emt 0:00:19]} Nf6 {[%emt 0:00:06]} 5. d3 {[%emt 0:00:06]} O-O {[%emt 0:00:26]} 6. Bg5 {[%emt 0:00:35]} h6 {[%emt 0:00:34]} 7. Bh4 {[%emt 0:00:08]} Be7 {[%emt 0:00:13]} 8. Nbd2 {[%emt 0:01:03]} d6 {[%emt 0:03:10]} 9. a4 {[%emt 0:01:55]} Nh5 {[%emt 0:06:22]} 10. g3 {[%emt 0:00:42]} Nf6 {[%emt 0:14:06]} 11. Bxf6 {[%emt 0:00:59]} Bxf6 {[%emt 0:00:14]} 12. h4 {[%emt 0:01:09]} Bg4 {[%emt 0:02:38]} 13. Nf1 {[%emt 0:08:01]} Ne7 {[%emt 0:19:58]} 14. Ne3 {[%emt 0:05:33]} Bc8 {[%emt 0:01:32]} 15. Nh2 {[%emt 0:03:05]} g6 {[%emt 0:05:34]} 16. Nhg4 {[%emt 0:04:03]} Bg7 {[%emt 0:00:14]} 17. Qf3 {[%emt 0:00:59]} c6 {[%emt 0:04:27]} 18. O-O {[%emt 0:18:50]} Kh8 {[%emt 0:02:31]} 19. Nf6 {[%emt 0:16:51]} Nf5 {[%emt 0:04:48]} 20. Nfg4 {[%emt 0:02:57]} Ne7 {[%emt 0:00:18]} 21. Nf6 {[%emt 0:00:22]} Nf5 {[%emt 0:05:40]} 22. Nfg4 {[%emt 0:00:26]} Nxe3 {[%emt 0:00:12]} 23. Nxe3 {[%emt 0:02:13]} f5 {[%emt 0:00:29]} 24. Qd1 {[%emt 0:02:41]} f4 {[%emt 0:02:58]} 25. Ng2 {[%emt 0:00:44]} Bh3 {[%emt 0:04:16]} 26. Qf3 {[%emt 0:06:26]} Qd7 {[%emt 0:05:14]} 27. gxf4 {[%emt 0:04:02]} Bxg2 {[%emt 0:00:15]} 28. Qxg2 {[%emt 0:00:15]} Rxf4 {[%emt 0:00:06]} 29. f3 {[%emt 0:00:11]} d5 {[%emt 0:01:00]} 30. Bb3 {[%emt 0:00:37]} Bf6 {[%emt 0:01:02]} 31. Kf2 {[%emt 0:02:11]} Bxh4+ {[%emt 0:01:49]} 32. Ke2 {[%emt 0:00:07]} Bg5 {[%emt 0:00:29]} 33. Rh1 {[%emt 0:00:51]} dxe4 {[%emt 0:04:40]} 34. fxe4 {[%emt 0:10:34]} Rg4 {[%emt 0:00:13]} 35. Qh3 {[%emt 0:00:37]} Rxe4+ {[%emt 0:00:19]} 0-1

[Event "Portugal Open 2020"]
[Site "Lisbon"]
[Date "2020.01.26"]
[Round "2.41"]
[White "Risting, Eivind Olav"]
[Black "Figueiredo, Mario"]
[Result "1-0"]
[ECO "A51"]
[WhiteElo "2306"]
[BlackElo "1939"]
[Annotator "NA"]
[PlyCount "107"]
[EventDate "2020.01.25"]
[EventType "swiss"]
[EventCountry "POR"]
[SourceTitle "playchess.com"]
[Source "ChessBase"]
[SourceQuality "1"]
[TimeControl "5400+30"]

1. d4 {[%emt 0:00:02]} Nf6 {[%emt 0:03:08]} 2. c4 {[%emt 0:00:17]} e5 {[%emt 0:00:31]} 3. dxe5 {[%emt 0:00:50]} Ne4 {[%emt 0:00:47]} 4. Nf3 {[%emt 0:03:08]} Bb4+ {[%emt 0:00:42]} 5. Nbd2 {[%emt 0:10:23]} Nc6 {[%emt 0:01:11]} 6. e3 {[%emt 0:01:41]} O-O {[%emt 0:05:51]} 7. Be2 {[%emt 0:03:00]} Qe7 {[%emt 0:02:34]} 8. O-O {[%emt 0:08:01]} Nxd2 {[%emt 0:13:24]} 9. Nxd2 {[%emt 0:00:30]} Bxd2 {[%emt 0:00:30]} 10. Qxd2 Nxe5 11. f4 {[%emt 0:03:44]} Nc6 {[%emt 0:03:34]} 12. Bf3 {[%emt 0:02:32]} d6 {[%emt 0:13:12]} 13. Re1 Be6 14. b3 {[%emt 0:00:53]} Rad8 {[%emt 0:01:48]} 15. Bb2 {[%emt 0:01:50]} f6 {[%emt 0:06:15]} 16. Rad1 {[%emt 0:04:57]} Rd7 {[%emt 0:03:37]} 17. g4 {[%emt 0:03:38]} Rfd8 {[%emt 0:02:57]} 18. Qg2 {[%emt 0:01:09]} f5 {[%emt 0:07:57]} 19. gxf5 {[%emt 0:00:54]} Bxf5 {[%emt 0:00:38]} 20. e4 {[%emt 0:01:26]} Be6 {[%emt 0:02:24]} 21. f5 {[%emt 0:00:17]} Ne5 {[%emt 0:02:50]} 22. Bxe5 {[%emt 0:01:41]} dxe5 {[%emt 0:01:27]} 23. fxe6 {[%emt 0:00:14]} Rxd1 {[%emt 0:03:47]} 24. Rxd1 {[%emt 0:00:42]} Rxd1+ {[%emt 0:00:39]} 25. Bxd1 {[%emt 0:00:07]} Qxe6 {[%emt 0:00:04]} 26. Bg4 {[%emt 0:02:56]} Qd6 {[%emt 0:03:59]} 27. Qf2 {[%emt 0:01:10]} b6 {[%emt 0:01:10]} 28. c5 {[%emt 0:03:46]} Qc6 {[%emt 0:08:49]} 29. Be2 {[%emt 0:06:53]} g6 {[%emt 0:04:38]} 30. Bc4+ {[%emt 0:00:47]} Kg7 {[%emt 0:00:08]} 31. Qf7+ {[%emt 0:01:57]} Kh6 {[%emt 0:00:08]} 32. Qf8+ {[%emt 0:00:17]} Kg5 {[%emt 0:02:16]} 33. h4+ {[%emt 0:01:46]} Kxh4 {[%emt 0:00:33]} 34. Qh6+ {[%emt 0:00:10]} Kg3 {[%emt 0:00:41]} 35. Qh2+ {[%emt 0:07:11]} Kf3 {[%emt 0:01:13]} 36. Qxe5 {[%emt 0:01:23]} Qd7 {[%emt 0:01:54]} 37. Qc3+ {[%emt 0:03:03]} Kxe4 {[%emt 0:01:12]} 38. Qe1+ {[%emt 0:01:08]} Kf4 {[%emt 0:00:21]} 39. Qf2+ {[%emt 0:01:42]} Kg5 {[%emt 0:00:48]} 40. Qe3+ {[%emt 0:04:26]} Kf6 {[%emt 0:01:26]} 41. Qc3+ {[%emt 0:04:56]} Kg5 {[%emt 0:00:19]} 42. Qe3+ {[%emt 0:01:41]} Kf6 {[%emt 0:00:09]} 43. Kh2 {[%emt 0:01:04]} h5 {[%emt 0:00:26]} 44. cxb6 {[%emt 0:02:14]} cxb6 {[%emt 0:00:09]} 45. Bd3 {[%emt 0:02:31]} Qd6+ {[%emt 0:00:33]} 46. Kg2 {[%emt 0:00:19]} Kg7 {[%emt 0:01:07]} 47. Qe4 {[%emt 0:00:38]} h4 {[%emt 0:00:39]} 48. Qf3 {[%emt 0:00:48]} g5 {[%emt 0:00:40]} 49. Kh3 {[%emt 0:00:50]} Qd4 {[%emt 0:00:45]} 50. Qf5 {[%emt 0:02:28]} Qe3+ {[%emt 0:00:11]} 51. Kg4 {[%emt 0:00:52]} Qg3+ {[%emt 0:00:49]} 52. Kh5 {[%emt 0:00:05]} h3 {[%emt 0:00:28]} 53. Qg6+ {[%emt 0:01:28]} Kf8 {[%emt 0:00:07]} 54. Qf6+ 1-0

[Event "Portugal Open 2020"]
[Site "Lisbon"]
[Date "2020.01.26"]
[Round "2.42"]
[White "Candeias, Humberto"]
[Black "Chkhaidze, Nikoloz"]
[Result "0-1"]
[ECO "D32"]
[WhiteElo "1921"]
[BlackElo "2288"]
[Annotator "NA"]
[PlyCount "50"]
[EventDate "2020.01.25"]
[EventType "swiss"]
[EventCountry "POR"]
[SourceTitle "playchess.com"]
[Source "ChessBase"]
[SourceQuality "1"]
[TimeControl "5400+30"]

1. d4 {[%emt 0:02:51]} d5 {[%emt 0:00:00]} 2. c4 {[%emt 0:00:20]} e6 {[%emt 0:00:12]} 3. Nc3 {[%emt 0:00:36]} c5 {[%emt 0:03:21]} 4. e3 {[%emt 0:03:08]} Nf6 {[%emt 0:00:12]} 5. Nf3 {[%emt 0:00:55]} Nc6 {[%emt 0:00:03]} 6. Be2 {[%emt 0:02:17]} a6 {[%emt 0:03:05]} 7. O-O {[%emt 0:00:24]} dxc4 {[%emt 0:01:12]} 8. Bxc4 {[%emt 0:00:32]} b5 {[%emt 0:00:31]} 9. Bd3 {[%emt 0:05:18]} cxd4 {[%emt 0:02:13]} 10. exd4 {[%emt 0:00:59]} Bb7 {[%emt 0:00:09]} 11. Ne4 {[%emt 0:04:46]} Nb4 {[%emt 0:02:02]} 12. Nxf6+ {[%emt 0:01:15]} gxf6 {[%emt 0:06:22]} 13. Be2 {[%emt 0:03:19]} Bd6 {[%emt 0:00:39]} 14. a4 {[%emt 0:08:11]} bxa4 {[%emt 0:03:40]} 15. Qxa4+ {[%emt 0:01:46]} Bc6 {[%emt 0:00:28]} 16. Qa5 {[%emt 0:00:13]} Qb8 {[%emt 0:00:48]} 17. Qh5 {[%emt 0:01:26]} Ke7 {[%emt 0:00:24]} 18. d5 {[%emt 0:18:31]} Bxd5 {[%emt 0:01:44]} 19. Ra5 {[%emt 0:22:34]} Qb6 {[%emt 0:02:58]} 20. Rxd5 {[%emt 0:00:53]} Nxd5 {[%emt 0:00:41]} 21. Bc4 {[%emt 0:03:06]} Qc5 {[%emt 0:05:11]} 22. Qh4 {[%emt 0:03:25]} Rhg8 {[%emt 0:07:13]} 23. Re1 {[%emt 0:02:48]} h5 {[%emt 0:04:37]} 24. b3 {[%emt 0:02:59]} Rg4 {[%emt 0:01:55]} 25. Qxh5 {[%emt 0:01:20]} Rxg2+ {[%emt 0:02:25]} 0-1

[Event "Portugal Open 2020"]
[Site "Lisbon"]
[Date "2020.01.26"]
[Round "3.10"]
[White "Veiga, Jose Francisco R P N"]
[Black "Haldorsen, Benjamin"]
[Result "1/2-1/2"]
[ECO "B67"]
[WhiteElo "2312"]
[BlackElo "2463"]
[Annotator "RC"]
[PlyCount "84"]
[EventDate "2020.01.25"]
[EventType "swiss"]
[EventCountry "POR"]
[SourceTitle "playchess.com"]
[Source "ChessBase"]
[SourceQuality "1"]
[TimeControl "5400+30"]

1. e4 {[%emt 0:03:44]} c5 {[%emt 0:00:00]} 2. Nf3 {[%emt 0:00:07]} Nc6 {[%emt 0:00:00]} 3. d4 {[%emt 0:00:11]} cxd4 {[%emt 0:00:24]} 4. Nxd4 {[%emt 0:00:05]} Nf6 {[%emt 0:00:31]} 5. Nc3 {[%emt 0:00:09]} d6 {[%emt 0:00:17]} 6. Bg5 {[%emt 0:00:23]} e6 {[%emt 0:00:05]} 7. Qd2 {[%emt 0:00:28]} a6 {[%emt 0:00:21]} 8. O-O-O {[%emt 0:00:29]} Bd7 {[%emt 0:00:06]} 9. f4 {[%emt 0:01:41]} h6 {[%emt 0:00:33]} 10. Bxf6 {[%emt 0:00:49]} Qxf6 {[%emt 0:00:05]} 11. Nf3 {[%emt 0:10:00]} Qd8 {[%emt 0:00:55]} 12. Bd3 {[%emt 0:00:47]} Be7 {[%emt 0:01:17]} 13. Rhe1 {[%emt 0:14:34]} Qc7 {[%emt 0:03:34]} 14. g4 {[%emt 0:03:39]} O-O-O {[%emt 0:01:17]} 15. h4 {[%emt 0:08:22]} Kb8 {[%emt 0:03:41]} 16. Kb1 {[%emt 0:06:27]} Rc8 {[%emt 0:06:39]} 17. g5 {[%emt 0:03:10]} Na5 {[%emt 0:13:10]} 18. Qe3 {[%emt 0:13:26]} hxg5 {[%emt 0:20:08]} 19. hxg5 {[%emt 0:02:17]} Nc4 {[%emt 0:05:46]} 20. Bxc4 {[%emt 0:03:47]} Qxc4 {[%emt 0:00:06]} 21. Rh1 {[%emt 0:00:54]} Rxh1 {[%emt 0:10:04]} 22. Rxh1 {[%emt 0:00:21]} g6 {[%emt 0:02:55]} 23. Qd3 {[%emt 0:03:58]} Qc5 {[%emt 0:04:29]} 24. Rh7 {[%emt 0:01:28]} Be8 {[%emt 0:01:41]} 25. f5 {[%emt 0:07:43]} Bd8 {[%emt 0:00:30]} 26. fxg6 {[%emt 0:01:03]} fxg6 {[%emt 0:00:08]} 27. Nd4 {[%emt 0:00:45]} Qe5 {[%emt 0:04:25]} 28. Nf3 {[%emt 0:00:18]} Qc5 {[%emt 0:02:05]} 29. Nd4 {[%emt 0:00:06]} Qe5 {[%emt 0:06:55]} 30. Nf3 {[%emt 0:00:08]} Qf4 {[%emt 0:03:49]} 31. Ne2 {[%emt 0:02:24]} Qf8 {[%emt 0:00:01]} 32. Ned4 {[%emt 0:02:34]} Qg8 {[%emt 0:00:28]} 33. Rh1 {[%emt 0:01:37]} e5 {[%emt 0:01:12]} 34. Ne2 {[%emt 0:00:18]} Qe6 {[%emt 0:00:53]} 35. Nc3 {[%emt 0:00:09]} Ba5 {[%emt 0:01:44]} 36. Nd5 {[%emt 0:00:14]} Bb5 {[%emt 0:00:14]} 37. Qa3 {[%emt 0:00:41]} Bd8 {[%emt 0:00:27]} 38. Rh7 {[%emt 0:01:59]} Bc4 {[%emt 0:01:23]} 39. Ne3 {[%emt 0:01:39]} Be2 {[%emt 0:01:40]} 40. Nd5 {[%emt 0:00:08]} Bc4 {[%emt 0:00:06]} 41. Ne3 {[%emt 0:00:17]} Be2 {[%emt 0:03:31]} 42. Nd5 {[%emt 0:00:08]} Bc4 {[%emt 0:01:43]} 1/2-1/2

[Event "Portugal Open 2020"]
[Site "Lisbon"]
[Date "2020.01.26"]
[Round "3.35"]
[White "Morais, Vitor"]
[Black "Baba, Masahiro"]
[Result "0-1"]
[ECO "A25"]
[WhiteElo "1864"]
[BlackElo "2274"]
[Annotator "NA RC"]
[PlyCount "50"]
[EventDate "2020.01.25"]
[EventType "swiss"]
[EventCountry "POR"]
[SourceTitle "playchess.com"]
[Source "ChessBase"]
[SourceQuality "1"]
[TimeControl "5400+30"]

1. c4 {[%emt 0:00:00]} e5 {[%emt 0:00:00]} 2. Nc3 {[%emt 0:00:00]} Nc6 {[%emt 0:00:00]} 3. g3 {[%emt 0:00:00]} Bc5 {[%emt 0:00:26]} 4. Bg2 {[%emt 0:00:01]} d6 {[%emt 0:00:54]} 5. e3 {[%emt 0:00:09]} a6 {[%emt 0:01:28]} 6. Nge2 {[%emt 0:00:05] A25: English Opening vs King's Indian with ...Nc6 but without early d3} h5 {[%emt 0:01:15]} (6... Ba7 7. O-O h5 8. d4 h4 9. c5 hxg3 10. hxg3 Nge7 11. cxd6 Qxd6 12. dxe5 Qxe5 {0-1 (25) Guseinov,G (2666)-Nihal,S (2612) Moscow 2019}) 7. h4 $146 {[%emt 0:00:30]} ({Predecessor:} 7. d4 Ba7 8. h4 {0-1 (44) Schoene,R (2279)-Meskovs,N (2524) Deizisau 2017}) 7... Nf6 {[%emt 0:02:18]} 8. d4 {[%emt 0:00:10]} Ba7 {[%emt 0:00:48]} 9. b3 {[%emt 0:01:03]} Bg4 {[%emt 0:10:31]} 10. Qd2 {[%emt 0:00:23]} O-O {[%emt 0:03:17]} 11. d5 {[%emt 0:00:20]} Ne7 {[%emt 0:00:49]} 12. Bb2 {[%emt 0:00:13]} Rb8 {[%emt 0:02:12]} 13. O-O {[%emt 0:01:05]} Qd7 {[%emt 0:04:29]} 14. Rae1 {[%emt 0:04:06]} Bh3 {[%emt 0:05:59]} 15. Nc1 {[%emt 0:00:57]} b5 {[%emt 0:02:07]} 16. cxb5 {[%emt 0:00:12]} axb5 {[%emt 0:00:04]} 17. e4 {[%emt 0:00:12]} Nh7 {[%emt 0:03:06]} 18. Kh2 {[%emt 0:00:31]} Bxg2 {[%emt 0:02:00]} 19. Kxg2 {[%emt 0:00:10]} b4 {[%emt 0:11:35]} 20. Nd1 {[%emt 0:01:44] [#]} f5 $1 {[%emt 0:03:10]} 21. f4 {[%emt 0:02:52]} Nf6 {[%emt 0:06:10]} 22. exf5 $19 Nxf5 {[%emt 0:05:43]} 23. fxe5 {[%emt 0:00:44]} Nxh4+ {[%emt 0:02:55]} 24. gxh4 {[%emt 0:00:25]} Qg4+ {[%emt 0:00:19]} 25. Kh1 {[%emt 0:00:17]} Ne4 {[%emt 0:01:03]} 0-1

[Event "Portugal Open 2020"]
[Site "Lisbon"]
[Date "2020.01.27"]
[Round "4.36"]
[White "Casagrande, Federico"]
[Black "Balbuena Fuentes, Mario"]
[Result "*"]
[ECO "A45"]
[WhiteElo "1999"]
[BlackElo "2234"]
[Annotator "RC"]
[PlyCount "59"]
[EventDate "2020.01.25"]
[EventType "swiss"]
[EventCountry "POR"]
[SourceTitle "playchess.com"]
[Source "ChessBase"]
[SourceQuality "1"]
[TimeControl "5400+30"]

1. d4 Nf6 2. Nc3 d5 3. Bf4 a6 4. e3 e6 5. Bd3 c5 6. dxc5 Bxc5 7. Nf3 O-O 8. a3 b5 9. O-O Bb7 10. Qe2 Nbd7 11. Nb1 Re8 12. Ne5 Nxe5 13. Bxe5 Nd7 14. Bc3 e5 15. Bf5 g6 16. Bh3 Nf6 17. Nd2 d4 18. Bb4 Bb6 19. Nb3 Ne4 20. Bg4 a5 21. Be1 dxe3 22. fxe3 Qg5 23. Bd7 Bxe3+ 24. Kh1 Red8 25. Bxb5 a4 26. Na5 Rd2 27. Nxb7 Rxe2 28. Bxe2 Rb8 29. Bf3 Qf5 30. Bxe4 *

[Event "Portugal Open 2020"]
[Site "Lisbon"]
[Date "2020.01.28"]
[Round "5.20"]
[White "Garcia Dorado, Alberto"]
[Black "Taboas Rodriguez, Daniel"]
[Result "*"]
[ECO "A50"]
[WhiteElo "2152"]
[BlackElo "2348"]
[Annotator "RC"]
[PlyCount "42"]
[EventDate "2020.01.25"]
[EventType "swiss"]
[EventCountry "POR"]
[SourceTitle "playchess.com"]
[Source "ChessBase"]
[SourceQuality "1"]
[TimeControl "5400+30"]

1. d4 {[%emt 0:00:00]} Nf6 {[%emt 0:00:00]} 2. c4 {[%emt 0:00:05]} b6 {[%emt 0:00:00]} 3. f3 {[%emt 0:02:04]} Nc6 {[%emt 0:00:00]} 4. d5 {[%emt 0:14:32]} Ne5 {[%emt 0:00:18]} 5. e4 {[%emt 0:00:27]} e6 {[%emt 0:00:32]} 6. Bf4 {[%emt 0:01:14]} Ng6 {[%emt 0:04:56]} 7. Be3 {[%emt 0:00:14]} Bc5 {[%emt 0:00:30]} 8. Bxc5 {[%emt 0:01:58]} bxc5 {[%emt 0:00:05]} 9. Nc3 {[%emt 0:00:09]} O-O {[%emt 0:00:19]} 10. Bd3 {[%emt 0:01:23]} Rb8 {[%emt 0:16:24]} 11. Nge2 {[%emt 0:02:14]} Rxb2 {[%emt 0:01:40]} 12. Na4 {[%emt 0:01:08]} Rb4 {[%emt 0:00:43]} 13. Nxc5 {[%emt 0:01:55]} c6 {[%emt 0:04:03]} 14. Qd2 {[%emt 0:01:33]} Qb6 {[%emt 0:01:03]} 15. Nb3 {[%emt 0:00:14]} cxd5 {[%emt 0:00:51]} 16. exd5 {[%emt 0:00:22]} d6 {[%emt 0:02:21]} 17. Bxg6 {[%emt 0:00:39]} hxg6 {[%emt 0:00:24]} 18. Rc1 {[%emt 0:01:31]} exd5 {[%emt 0:03:45]} 19. cxd5 {[%emt 0:00:25]} Bb7 {[%emt 0:03:26]} 20. Nbd4 {[%emt 0:06:29]} Re8 {[%emt 0:06:59]} 21. Rd1 {[%emt 0:05:57]} Ba6 {[%emt 0:01:28]} *